Cogmind - Beta 15 @@@ ROGUE MODE // 2025.06.01 @ 17:12:52 Player: Elias Result: Destroyed by 3I-47W(R) with Subdweller Laser Performance ------------- Evolutions (0) 0 Regions Visited (2) 400 Robots Destroyed (12) 60 Value Destroyed (228) 228 Prototype IDs (0) 0 Alien Tech Used (0) 0 Bonus (0) 0 TOTAL SCORE: 688 Bonus ------- None Cogmind --------- Core Integrity 0/250 Matter 298/300 Energy 100/100 System Corruption 0% Temperature Cool (6) Movement Treading (240) Ox1 Location -10/Subcaves Parts ------- > --- POWER (1) -------- (None) > --- PROPULSION (2) --- Light Treads Light Treads > --- UTILITY (2) ------ Huge Storage Unit > --- WEAPON (2) ------- (None) > --- INVENTORY (25) --- Light Ion Engine Light Ion Engine Subdweller Power Source Small Storage Unit Sensor Array Signal Interpreter Improved Terrain Scanner Scrap Shield Peak State ------------ > --- POWER ------------ Ion Engine > --- PROPULSION ------- Aluminum Leg Aluminum Leg > --- UTILITY ---------- Small Storage Unit Sensor Array > --- WEAPON ----------- Medium Laser Light Assault Rifle > --- INVENTORY -------- Ion Engine Light Ion Engine Light Treads Light Treads Huge Storage Unit Improved Terrain Scanner EM Pulse Gun Mining Laser [Rating: 8] Favorites ----------- Power Ion Engine Engine Ion Engine Propulsion Light Treads Treads Light Treads Leg Aluminum Leg Utility Huge Storage Unit Device Sensor Array Storage Huge Storage Unit Weapon Light Assault Rifle Energy Gun Medium Laser Ballistic Gun Light Assault Rifle Special Weapon Flamer Build | -11 -10 -10 ------- Run | Yrd Mat Sub Slots Evolved . | . . . Power . | . . . Propulsion . | . . . Utility . | . . . Weapon . | . . . Parts Attached 15 | 7 3 5 Power 2 | 1 . 1 Engine 2 | 1 . 1 Core . | . . . Reactor . | . . . Propulsion 4 | 2 . 2 Treads 2 | . . 2 Leg 2 | 2 . . Wheel . | . . . Hover . | . . . Flight . | . . . Utility 3 | 1 2 . Device 1 | . 1 . Storage 2 | 1 1 . Processor . | . . . Hackware . | . . . Protection . | . . . Artifact . | . . . Weapon 6 | 3 1 2 Energy Gun 2 | 2 . . Energy Cannon . | . . . Ballistic Gun 2 | 1 . 1 Ballistic Cannon . | . . . Launcher . | . . . Special Weapon 2 | . 1 1 Impact Weapon . | . . . Slashing Weapon . | . . . Piercing Weapon . | . . . Special Melee Weapon . | . . . Unidentified Prototypes . | . . . Parts Lost 11 | . . 11 Power 2 | . . 2 Propulsion 2 | . . 2 Utility 1 | . . 1 Weapon 6 | . . 6 Highest Loss Streak 5 | . . 5 To Critical Strikes . | . . . Average Backups 8 | 5 9 9 Power 2 | 1 2 2 Propulsion 1 | 2 2 . Utility 3 | . 3 4 Weapon 1 | 1 2 1 Tool/Special . | . . . Unused Backups 7 | . . 7 Power 3 | . . 3 Propulsion . | . . . Utility 4 | . . 4 Weapon . | . . . Tool/Special . | . . . Average Slot Usage (%) 88 | . 98 84 Engine 13 | . 14 13 Treads 17 | . . 24 Leg 9 | . 28 2 Device 4 | . 12 1 Storage 14 | . 14 14 Energy Gun 8 | . 14 6 Ballistic Gun 11 | . 12 11 Special Weapon 7 | . 1 9 Peak Build Rating 8 | 6 8 8 Average Rating 7 | 5 7 7 On Entrance 4 | . 6 8 Naked Turns . | . . . Heaviest Build 89 | 13 89 89 Greatest Support 40 | 20 20 40 Greatest Overweight (x) 4 | 4 4 4 Average Overweight (x) 1 | 1 2 2 Largest Inventory Capacity 25 | 8 25 25 Average Capacity 21 | 7 22 25 Most Carried 12 | 7 12 12 Average Carried 9 | 5 10 10 Final Capacity 25 | 8 25 25 Final Carried 12 | 7 12 9 Class Distribution -------------------- 100% | Mutant Dominant Class ---------------- Mutant | -10/Materials Mutant | -10/Subcaves Resources | -11 -10 -10 ----------- Run | Yrd Mat Sub Matter Collected 396 | 293 16 87 Remotely . | . . . Salvage Created 346 | 174 51 121 Parts 25 | 11 8 6 Haulers Intercepted . | . . . Recyclers Shooed 1 | 1 . . Parts Field Recycled . | . . . Retrieved Matter . | . . . Parts Self-Destructed 7 | . . 7 Prevented . | . . . Kills | -11 -10 -10 ------- Run | Yrd Mat Sub Combat Hostiles Destroyed 7 | . 3 4 Guns 6 | . 3 3 Cannons 1 | . . 1 Classes Destroyed 5 | 3 1 1 Worker 1 | 1 . . Tunneler 3 | 3 . . Recycler 1 | 1 . . Swarmer 3 | . 3 . Subdweller 4 | . . 4 Best Kill Streak 3 | 2 3 2 Combat Bots Only 3 | . 3 2 Max Kills in Single Turn 1 | 1 1 1 Gunslinging . | . . . Exploded . | . . . Melee . | . . . Uniques/NPCs Destroyed . | . . . Combat | -11 -10 -10 -------- Run | Yrd Mat Sub Hostile Shots Fired 69 | . 17 52 Missed 17 | . 6 11 Hits 52 | . 11 41 Projectile 52 | . 11 41 AOE 4 | . . 4 Critical Strikes 2 | . . 2 Damage Taken 1165 | . 83 1082 Core 267 | . 6 261 Absorbed by Shields . | . . . Core Remaining (%) 100 | 100 . . Volleys Fired 64 | 27 14 23 Largest 2 | 2 2 2 Hottest 120 | 70 100 120 Shots Fired 123 | 54 27 42 Gun 116 | 54 26 36 Cannon . | . . . Launcher . | . . . Special 7 | . 1 6 Kinetic 53 | 27 13 13 Thermal 64 | 27 14 23 Explosive . | . . . Electromagnetic 6 | . . 6 Robot Hit Streak 14 | 11 3 14 Robot Miss Streak 5 | 2 5 3 Penetration Max . | . . . Secondary Targets 1 | . . 1 Max Gunslinging Chain 1 | . . 1 Shots Hit Robots 78 | 32 10 36 Core Hits 29 | 13 5 11 Critical Kills . | . . . Critical Parts Destroyed . | . . . Critical Strikes 7 | 2 1 4 Burn 7 | 2 1 4 Melee Attacks . | . . . Impact . | . . . Slashing . | . . . Piercing . | . . . Sneak Attacks . | . . . Combat Hostiles . | . . . Follow-up Attacks . | . . . Damage Inflicted 814 | 319 103 392 Guns 759 | 319 103 337 Cannons . | . . . Explosions . | . . . Melee . | . . . Ramming . | . . . Kinetic 279 | 118 66 95 Thermal 480 | 201 37 242 Explosive . | . . . Electromagnetic 55 | . . 55 Impact . | . . . Slashing . | . . . Piercing . | . . . Highest Corruption . | . . . Average Corruption . | . . . Corruption Purged . | . . . Corruption Blocked . | . . . Overload Shots . | . . . Overflow Damage . | . . . Projectiles . | . . . Explosions . | . . . Melee . | . . . Knockbacks . | . . . Impact . | . . . Kinetic . | . . . Secondary . | . . . Self-Inflicted Damage . | . . . Shots . | . . . Rammed . | . . . Targets Rammed . | . . . Kicked . | . . . Crushed . | . . . Highest Temperature 90 | 90 70 12 Average Temperature 29 | 32 26 7 Received Heat Transfer 84 | . . 84 Siege Activations . | . . . Martial Activations . | . . . Shielding Activations . | . . . Robots Disrupted . | . . . Combat Hostiles . | . . . Robots Corrupted . | . . . Combat Hostiles . | . . . Parts Fried . | . . . Impact Corruptions . | . . . Robots Melted . | . . . Combat Hostiles . | . . . Parts Melted 4 | 2 . 2 Heat Transferred 2176 | 740 185 1251 Parts Sabotaged . | . . . Parts Stolen . | . . . Parts Stripped . | . . . Power Chain Reactions . | . . . Alert | -11 -10 -10 ------- Run | Yrd Mat Sub Maximum Alert Level . | . . . Low Security (%) 100 | 100 100 . Level 1 . | . . . Level 2 . | . . . Level 3 . | . . . Level 4 . | . . . Level 5 . | . . . High Security . | . . . Max Security . | . . . Peak Influence 65 | 10 65 . Initial . | . . . Average 7 | . 13 . Influence Increases 125 | 25 100 . Destroy 0b10 Robot/C 60 | . 60 . Destroy 0b10 Robot/NC 25 | 25 . . Destroy Leader 10 | . 10 . Disable Machine 15 | . 15 . Lose Combat Pursuer 15 | . 15 . Influence Decreases 125 | 25 75 25 Entered New Map 13 | . . 13 Time Decay 112 | 25 75 12 Squads Dispatched . | . . . Investigation . | . . . Extermination . | . . . Reinforcement . | . . . Assault . | . . . Garrison . | . . . Intercept . | . . . Searches Triggered . | . . . Construction Impeded . | . . . Haulers Reinforced . | . . . Active Scanning Responses . | . . . Cargo Convoy Interrupts . | . . . Stealth | -11 -10 -10 --------- Run | Yrd Mat Sub Distress Signals 1 | . 1 . Communications Jammed . | . . . Distress Signals . | . . . Times Spotted 15 | . 7 8 Peak Tracking Total 5 | . 5 3 Tactical Retreats 1 | . 1 . Traps | -11 -10 -10 ------- Run | Yrd Mat Sub Traps Triggered 1 | . . 1 Indirectly . | . . . Trap Hack Attempts . | . . . Triggered . | . . . Disarmed . | . . . Reprogrammed . | . . . Reused . | . . . Traps Extracted . | . . . Installed . | . . . Triggered . | . . . Machines | -11 -10 -10 ---------- Run | Yrd Mat Sub Machines Disabled 1 | . 1 . Max in Single Turn 1 | . 1 . Machines Repaired . | . . . Machines Dismantled . | . . . Machines Sabotaged . | . . . Overloaded Fab Kills . | . . . Hacking | -11 -10 -10 --------- Run | Yrd Mat Sub Machines Accessed 1 | . 1 . Terminals . | . . . Fabricators . | . . . Repair Stations . | . . . Recycling Units 1 | . 1 . Scanalyzers . | . . . Garrison Access . | . . . Total Hacks 2 | . 2 . Successful 1 | . 1 . Failed 1 | . 1 . Catastrophic . | . . . Database Lockouts . | . . . Manual . | . . . Terminals . | . . . Fabricators . | . . . Repair Stations . | . . . Recycling Units 2 | . 2 . Scanalyzers . | . . . Garrison Access . | . . . Terminal Hacks . | . . . Fabricator Hacks . | . . . Repair Station Hacks . | . . . Recycling Unit Hacks 1 | . 1 . Retrieve Components 1 | . 1 . Scanalyzer . | . . . Garrison Access Hacks . | . . . Unauthorized Hacks . | . . . Terminals . | . . . Fabricators . | . . . Repair Stations . | . . . Recycling Units . | . . . Scanalyzers . | . . . Garrison Access . | . . . Data Cores Recovered . | . . . Used . | . . . Hacking Detections 1 | . 1 . Full Trace Events . | . . . Feedback Events . | . . . Feedback Blocked . | . . . Robot Schematics Acquired . | . . . Robots Built . | . . . Authchips . | . . . Time . | . . . Total Robot Build Rating . | . . . Part Schematics Acquired . | . . . Parts Built . | . . . Authchips . | . . . Time . | . . . Total Part Build Rating . | . . . Parts Repaired . | . . . Time . | . . . Parts Recycled . | . . . Recycled Matter . | . . . Retrieved Matter . | . . . Retrieved Components 2 | . 2 . Parts Scanalyzed . | . . . Part Schematics Acquired . | . . . Parts Damaged . | . . . Bothacking | -11 -10 -10 ------------ Run | Yrd Mat Sub Used RIF Installer . | . . . Robots Hacked . | . . . Non-combat . | . . . Combat . | . . . Robot Hacks Applied . | . . . Relay Couplers Released . | . . . Fabnet Peak Effective % . | . . . Robots Rewired . | . . . Allies Hacked . | . . . Hacks Repelled . | . . . Allies | -11 -10 -10 -------- Run | Yrd Mat Sub Total Allies . | . . . Largest Group . | . . . Highest-Rated Group . | . . . Highest-Rated Ally . | . . . Total Orders . | . . . Ally Attacks . | . . . Total Damage . | . . . Kills . | . . . Allies Corrupted . | . . . Allies Melted . | . . . Intel | -11 -10 -10 ------- Run | Yrd Mat Sub Active Infowar (turns) 457 | . 349 108 Sensors 457 | . 349 108 Robot Analysis Total . | . . . Derelict Logs Recovered 1 | . . 1 Drone Launches . | . . . Drone Recoveries . | . . . Exploration | -11 -10 -10 ------------- Run | Yrd Mat Sub Turns Passed 1760 | 341 385 1034 Spaces Moved 564 | 163 113 288 Core 60 | 60 . . Treads 265 | . . 265 Legs 239 | 103 113 23 Wheels . | . . . Hover . | . . . Flight . | . . . Fastest Speed 50 | 50 120 240 Average Speed 269 | 150 298 326 Slowest Speed 400 | 250 400 400 Overloaded Moves . | . . . Propulsion Burnouts . | . . . Robots Hopped . | . . . Potential Cave-ins . | . . . Cave-ins Triggered . | . . . Exploration Rate (%) 16 | 8 14 27 Regions Visited 2 Branch Regions 1 Pre-discovered Areas . | . . . Known Exits Taken . | . . . Unknown Exits Taken 2 | 1 1 . Scrap Searched . | . . . Spaces Dug . | . . . Terrain Destroyed . | . . . Melee . | . . . Projectile . | . . . AOE . | . . . Terrain Rammed . | . . . Walls Destroyed . | . . . Machines Disabled . | . . . Actions | -11 -10 -10 --------- Run | Yrd Mat Sub Total 681 | 209 135 337 Wait 15 | . . 15 Move 562 | 162 112 288 Hop . | . . . Pick Up 21 | 13 5 3 Fast Attach 1 | . 1 . Attach 13 | 6 . 7 Detach . | . . . Swap 5 | 1 3 1 Drop . | . . . Fire 64 | 27 14 23 Melee . | . . . Ram . | . . . Kick . | . . . Crush . | . . . Escape Stasis . | . . . Rewire . | . . . Trap . | . . . Miscellaneous . | . . . Route ------- -11/Scrapyard -10/Materials -10/Subcaves History --------- Turn | Location | Event 13 | -11/Scrapyard | Discovered new exit (range 16) 342 | -11/Scrapyard | Entered Materials 343 | -10/Materials | Build established: Mutant 699 | -10/Materials | Discovered new exit (range 8) 727 | -10/Materials | Entered Subcaves 728 | -10/Subcaves | Approached by a straggling Scientist 825 | -10/Subcaves | Ambushed by Subdweller buried in earth 825 | -10/Subcaves | Ambushed by Subdweller buried in earth 825 | -10/Subcaves | Ambushed by Subdweller buried in earth 840 | -10/Subcaves | Core integrity fell below 50% 855 | -10/Subcaves | Core integrity fell below 20% 874 | -10/Subcaves | Lost 5 parts (1p2n1u1w) 1013 | -10/Subcaves | Shifting Twisted Machinery released Scrap Shield 1176 | -10/Subcaves | Learned Materials non-interactive machine intel 1761 | -10/Subcaves | Destroyed by 3I-47W(R) with Subdweller Laser Last Messages --------------- 00878_ Acquired 2 matter. 00883_ Subatomizers dissect the Sub. Monowheel. 00887_ Acquired Flamer. 00895_ Subatomizers dissect the Sub. Monowheel. 00898_ Acquired Sub. Power Source. 00918_ Subatomizers dissect the Sub. Monowheel. Scrap Shield falls loose from the Twisted Machinery. 01026_ EM Pulse Gun destroyed. 01028_ Med. Laser destroyed. 01043_ WF-RNU(R) destroyed. 01050_ Acquired 23 matter. 01069_ Acquired Scrap Shield. 01176_ Acquired derelict log, extracted data. Data stored: Materials non-interactive machine intel. 01403_ Triggered Shrapnel Trap. 01403_ An expanding cloud of shrapnel blasts out in all directions. 01753_ Flamer destroyed. 01754_ Lgt. Assault Rifle destroyed. 01758_ Mining Laser destroyed. 01759_ Ion Engine destroyed. Map ----- +----------------------------------------------------+ | # # ##???# ??????????????????? | | ##### #???????????????????? | | ## ######??????????????? | | ## # # ######## #??????????????? | | ### #####?????# #??????????????? | | ##?# ##?????????# ##??????????????? | | #??# ##?????????## #???????????????? | | #####??## ####???##### ##???????????????? | | #???##### ##### ##????????????????? | | #??## ## ##?????????????????? | | #?# ### ##??????????????????? | | ### ##?# #???????????????????? | | #?## #??## #???????????????????? | | ####?## ##??## #####???????????????????? | | #????# #???## ##???????????????????????? | | ?????# ####?#####????????????????????????? | | ?????## ##??????????#####??????????????? | | ?????## ### ##????????## #??????????????? | | ?????# #### ##???##### #??????????????? | | ?????## # # # ##### #??????????????? | | ?????# # ##??????????????? | | ?????## ####### #???????????????? | | ?????# ## # #?????# #???????????????? | | ???# ##### ##?#### #???????????????? | | ??# ##### ### #???????????????? | | ??# #### R @ #???????????????? | | ??# #??# R #???????????????? | | ??# ???# ## ##???????????????? | | ??## ???# ### #????????????????? | | ???## #### ### ##???????????????? | | ????# ## ## ##??????????????? | | ????#### ### #??????????????? | | ?????# ##?# #??????????????? | | ?????## ###?## ## #??????????????? | | ??????### ##?? ## ## ##??????????????? | | ##????### #??# ## ####???????????????? | | ##???# ### ## ;"#????????????????? | | #???# ### "#????????????????? | | #???# ##?#" "#????????????????? | | #???## ##??#" ;"#????????????????? | | #???## #???##" "#????????????????? | | ##### #????#" "#????????????????? | | ##????# ^ ^#????????????????? | | # ##?????# #????????????????? | | ## #????### ^ ##???????????????? | | ?### #???## #???????????????? | | ??## ##???# ^ ## #???????????????? | | ??# # ###????# #?###???????????????? | | ?# # #????### ###???????????????????? | | ?# # ###### ####??????????????????? | +----------------------------------------------------+ Best States ------------- Heat Dissipation 25 Energy Generation 10 Energy Capacity 250 Matter Stores 300 Matter Capacity 300 Sight Range 16 Robot Scan Range 14 Terrain Scan Density 10 Evasion (%) 55 Recoil Reduction 2 Item Schematics ----------------- None Robot Schematics ------------------ None Fabricated ------------ Nothing Repaired ---------- Nothing Alien Tech Used ----------------- None Achievements -------------- None Challenges ------------ None Game ------ Seed ShockIntegratedSlayer Manual? 0 Play Time 00:09:53 Cumulative 40.0 hours Start 2025.06.01 @ 17:03:12 End 2025.06.01 @ 17:12:52 Sessions 1 Manual Loads 0 Difficulty Rogue Special Mode None Game No. 67 Rogue 67 Adventurer 0 Explorer 0 Win Type - Total 0 Types 0/0/0/0/0/0/0/0/0/0 Lore% 33 Gallery% 35 Achievement% 30 Wizard Run 0 Options --------- Layout 0 ASCII 0 Keyboard 0 Movement Mouse Keybinds 0 Fullscreen 1 Font 18/SmallcapsGlow Map View 76x50 Zoom Use 0% Tactical HUD 1 Map Filters NONE Filters NONE Steam 1 RUN: 782df2cc-eadd-4556-8b7d-81c61269e613